fUSD/lending_fUSD_20240204
["ID","MTS","AMOUNT","RATE_DAILY","PERIOD"]
[313279668,1707073292802,-2000.0,0.000475,32]
[313279669,1707073292827,-993.9830889,0.000476,30]
[313279670,1707073292851,-157.0,0.000476,30]
[313279671,1707073292874,-155.15706483,0.00047605,30]
[313279672,1707073292897,-1044.03,0.00047671,31]
[313279673,1707073292920,-1000.0,0.00047671,30]
[313279674,1707073292943,-500.0,0.00047671,31]
[313279675,1707073292967,-546.31,0.00047671,31]
[313279676,1707073292991,-1699.92,0.00047671,31]
[313279677,1707073293017,-500.0,0.00047671,31]
[313279678,1707073293041,-500.0,0.00047671,31]
[313279679,1707073293064,-1005.74,0.00047671,31]
[313279680,1707073293087,-500.0,0.00047671,31]
[313279681,1707073293111,-4366.03,0.00047671,31]
[313279682,1707073293134,-500.0,0.00047671,31]
[313279683,1707073293157,-975.07,0.00047671,31]
[313279684,1707073293181,-500.0,0.00047671,31]
[313279685,1707073293205,-500.0,0.00047671,31]
[313279686,1707073293228,-530.26461246,0.00047671,31]
[313279687,1707073293252,-500.0,0.00047671,31]
[313279688,1707073293274,-1100.05,0.00047671,31]
[313279689,1707073293296,-500.0,0.00047671,31]
[313279690,1707073293319,-500.0,0.00047671,31]
[313279691,1707073293344,-515.63,0.00047671,31]
[313279692,1707073293370,-500.0,0.00047671,31]
[313279693,1707073293394,-500.0,0.00047671,31]
[313279694,1707073293419,-500.0,0.00047671,31]
[313279695,1707073293448,-500.0,0.00047671,31]
[313279696,1707073293473,-500.0,0.00047671,31]
[313279697,1707073293497,-500.0,0.00047671,31]
[313279698,1707073293522,-726.67,0.00047671,31]
[313279699,1707073293545,-500.0,0.00047671,31]
[313279700,1707073293567,-500.0,0.00047671,31]
[313279701,1707073293591,-500.0,0.00047671,31]
[313279702,1707073293614,-714.0,0.00047671,31]
[313279703,1707073293638,-500.0,0.00047671,31]
[313279704,1707073293662,-500.0,0.00047671,31]
[313279705,1707073293685,-500.0,0.00047671,31]
[313279706,1707073293709,-500.0,0.00047671,31]
[313279707,1707073293733,-5901.62,0.00047671,31]
[313279708,1707073293757,-500.0,0.00047671,31]
[313279709,1707073293780,-500.0,0.00047671,31]
[313279710,1707073293805,-1087.84,0.00047671,31]
[313279711,1707073293829,-500.0,0.00047671,31]
[313279712,1707073293852,-500.0,0.00047671,31]
[313279713,1707073293875,-883.87,0.00047671,31]
[313279714,1707073293897,-468.38071521,0.00047671,31]
[313279715,1707073294039,-500.0,0.00047671,31]
[313279716,1707073294063,-539.97,0.00047671,31]
[313279717,1707073294087,-500.0,0.00047671,31]
[313279718,1707073294112,-484.67412351,0.00047671,31]
[313279719,1707073294141,-500.0,0.00047671,31]
[313279720,1707073294164,-500.0,0.00047671,31]
[313279721,1707073294190,-269.16989726,0.00047671,31]
[313279722,1707073294214,-366.12357422,0.00047671,31]
[313279723,1707073294238,-4228.62,0.00047671,31]
[313279724,1707073294262,-553.67,0.00047671,31]
[313279725,1707073294286,-440.80581388,0.00047671,31]
[313279726,1707073294309,-500.0,0.00047671,31]
[313279727,1707073294332,-500.0,0.00047671,31]
[313279728,1707073294356,-184.37709703,0.00047671,31]
[313279729,1707073294380,-500.0,0.00047671,31]
[313279730,1707073294405,-500.0,0.00047671,31]
[313279731,1707073294430,-500.0,0.00047671,31]
[313279732,1707073294454,-500.0,0.00047671,31]
[313279733,1707073294478,-500.0,0.00047671,31]
[313279734,1707073294502,-500.0,0.00047671,31]
[313279735,1707073294526,-377.29015287,0.00047671,31]
[313279736,1707073294550,-471.57280608,0.00047671,31]
[313279737,1707073294574,-500.0,0.00047671,31]
[313279738,1707073294598,-421.71430688,0.00047671,31]
[313279739,1707073294621,-500.0,0.00047671,31]
[313279740,1707073294647,-500.0,0.00047671,31]
[313279741,1707073294670,-393.29733595,0.00047671,31]
[313279742,1707073294694,-339.2438815,0.00047671,31]
[313279743,1707073294717,-500.0,0.00047671,31]
[313279744,1707073294742,-500.0,0.00047671,31]
[313279745,1707073294766,-504.14941656,0.00047671,31]
[313279746,1707073294791,-500.0,0.00047671,31]
[313279747,1707073294814,-500.0,0.00047671,30]
[313279748,1707073294838,-360.46829713,0.00047671,31]
[313279749,1707073294862,-500.0,0.00047671,31]
[313279750,1707073294889,-1762.99,0.00047671,31]
[313279751,1707073294913,-820.32,0.00047671,31]
[313279752,1707073294937,-500.0,0.00047671,31]
[313279753,1707073294960,-500.0,0.00047671,31]
[313279754,1707073294983,-173.92260814,0.00047671,31]
[313279755,1707073295008,-2876.0,0.00047671,31]
[313279756,1707073295033,-500.0,0.00047671,31]
[313279757,1707073295057,-500.0,0.00047671,31]
[313279758,1707073295081,-500.0,0.00047671,31]
[313279759,1707073295105,-224.16223785,0.00047671,31]
[313279760,1707073295129,-500.0,0.00047671,31]
[313279761,1707073295154,-500.0,0.00047671,31]
[313279762,1707073295178,-633.54,0.00047671,31]
[313279763,1707073295202,-500.0,0.00047671,31]
[313279764,1707073295226,-500.0,0.00047671,31]
[313279765,1707073295250,-500.0,0.00047671,31]
[313279766,1707073295280,-500.0,0.00047671,31]
[313279767,1707073295305,-500.0,0.00047671,31]
[313279768,1707073295330,-500.0,0.00047671,31]
[313279769,1707073295355,-500.0,0.00047671,31]
[313279770,1707073295379,-500.0,0.00047671,31]
[313279771,1707073295403,-500.0,0.00047671,31]
[313279772,1707073295427,-500.0,0.00047671,31]
[313279773,1707073295458,-500.0,0.00047671,31]
[313279774,1707073295487,-3654.59,0.00047671,31]
[313279775,1707073295510,-500.0,0.00047671,31]
[313279776,1707073295534,-500.0,0.00047671,31]
[313279777,1707073295560,-500.0,0.00047671,31]
[313279778,1707073295583,-803.85,0.00047671,30]
[313279779,1707073295606,-204.89722951,0.00047671,31]
[313279780,1707073295629,-500.0,0.00047671,31]
[313279781,1707073295652,-150.0,0.00047671,30]
[313279782,1707073295676,-150.0,0.00047671,30]
[313279783,1707073295699,-160.99975112,0.00047744,30]
[313279784,1707073295724,-603.68444846,0.00047773,30]
[313279785,1707073295753,-1000.0,0.00047773,30]
[313279786,1707073295777,-844.86477535,0.00047773,30]
[313279787,1707073295801,-1340.0856633,0.00047773,30]
[313279788,1707073295827,-369.39889985,0.00047773,30]
[313279789,1707073295851,-487.97330177,0.00047773,30]
[313279790,1707073295881,-897.97030846,0.00047773,30]
[313279791,1707073295906,-463.57463668,0.00047773,30]
[313279792,1707073295931,-181.9341842,0.00047773,30]
[313279793,1707073295956,-295.15778634,0.00047773,30]
[313279794,1707073295980,-633.72686997,0.00047773,30]
[313279795,1707073296006,-1730.25449516,0.00047773,30]
[313279796,1707073296031,-339.7835799,0.00047773,30]
[313279797,1707073296055,-3341.34134808,0.00047773,30]
[313279798,1707073296080,-1000.0,0.00047773,30]
[313279799,1707073296104,-1099.55769038,0.00047773,30]
[313279800,1707073296128,-1800.14399358,0.00047773,30]
[313279801,1707073296153,-46534.59352435,0.00047773,30]
[313279802,1707073296178,-234.95922578,0.00047773,30]
[313279803,1707073296202,-1786.57642734,0.00047773,30]
[313279804,1707073296227,-278.74708149,0.00047773,30]
[313279805,1707073296251,-170.34543868,0.00047773,30]
[313279806,1707073296276,-18071.86625235,0.00047773,30]
[313279807,1707073296300,-422.43238768,0.00047773,30]
[313279808,1707073296326,-397.31990518,0.00047773,30]
[313279809,1707073296354,-5951.21520056,0.00047773,30]
[313279810,1707073296380,-221.49648122,0.00047773,30]
[313279811,1707073296405,-294.6894999,0.00047773,30]
[313279812,1707073296431,-2337.02303223,0.00047773,30]
[313279813,1707073296456,-799.97717733,0.00047773,30]
[313279814,1707073296481,-577.36262541,0.00047773,30]
[313279815,1707073296505,-310.64223711,0.00047773,30]
[313279816,1707073296532,-3700.73355299,0.00047773,30]
[313279817,1707073296557,-150.58737418,0.00047773,30]
[313279818,1707073296581,-1208.0,0.00047825,30]
[313279819,1707073296727,-3654.61865823,0.00047898,31]
[313279820,1707073296758,-500.0,0.00047945,31]
[313279821,1707073296780,-500.0,0.00047945,31]
[313279822,1707073296803,-500.0,0.00047945,31]
[313279823,1707073296825,-500.0,0.00047945,30]
[313279824,1707073296848,-1088.54162576,0.00048,30]
[313279825,1707073296870,-1000.0,0.00048,30]
[313279826,1707073296894,-1000.0,0.00048,30]
[313279827,1707073296916,-503.48842698,0.00048,30]
[313279828,1707073296940,-467.0,0.00048,30]
[313279829,1707073296963,-2000.0,0.00048,30]
[313279830,1707073296987,-1425.7142544,0.0004819,30]
[313279831,1707073297012,-1044.03,0.00048219,31]
[313279832,1707073297035,-1000.0,0.00048219,30]
[313279833,1707073297058,-195.91232665,0.00048219,31]
[313279834,1707073297081,-546.31,0.00048219,31]
[313279835,1707073297104,-1699.92,0.00048219,31]
[313279836,1707073297127,-455.11314432,0.00048219,31]
[313279837,1707073297151,-500.0,0.00048219,31]
[313279838,1707073297175,-1005.74,0.00048219,31]
[313279839,1707073297199,-500.0,0.00048219,31]
[313279840,1707073297223,-4366.03,0.00048219,31]
[313279841,1707073297246,-195.71533126,0.00048219,31]
[313279842,1707073297270,-500.0,0.00048219,31]
[313279843,1707073297295,-975.07,0.00048219,31]
[313279844,1707073297319,-500.0,0.00048219,31]
[313279845,1707073297344,-500.0,0.00048219,31]
[313279846,1707073297369,-500.0,0.00048219,31]
[313279847,1707073297392,-1100.05,0.00048219,31]
[313279848,1707073297416,-500.0,0.00048219,31]
[313279849,1707073297445,-234.52841019,0.00048219,31]
[313279850,1707073297471,-515.63,0.00048219,31]
[313279851,1707073297497,-500.0,0.00048219,31]
[313279852,1707073297521,-226.17249956,0.00048219,31]
[313279853,1707073297545,-500.0,0.00048219,31]
[313279854,1707073297571,-500.0,0.00048219,31]
[313279855,1707073297595,-500.0,0.00048219,31]
[313279856,1707073297621,-500.0,0.00048219,31]
[313279857,1707073297647,-726.67,0.00048219,31]
[313279858,1707073297670,-500.0,0.00048219,31]
[313279859,1707073297694,-500.0,0.00048219,31]
[313279860,1707073297719,-500.0,0.00048219,31]
[313279861,1707073297744,-714.0,0.00048219,31]
[313279862,1707073297768,-500.0,0.00048219,31]
[313279863,1707073297793,-580.65623897,0.00048219,31]
[313279864,1707073297818,-500.0,0.00048219,31]
[313279865,1707073297843,-500.0,0.00048219,31]
[313279866,1707073297867,-554.40664697,0.00048219,31]
[313279867,1707073297890,-5901.62,0.00048219,31]
[313279868,1707073297913,-500.0,0.00048219,31]
[313279869,1707073297938,-1087.84,0.00048219,31]
[313279870,1707073297964,-500.0,0.00048219,31]
[313279871,1707073297994,-500.0,0.00048219,31]
[313279872,1707073298017,-883.87,0.00048219,31]
[313279873,1707073298041,-539.97,0.00048219,31]
[313279874,1707073298065,-500.0,0.00048219,31]
[313279875,1707073298088,-500.0,0.00048219,31]
[313279876,1707073298114,-500.0,0.00048219,31]
[313279877,1707073298140,-500.0,0.00048219,31]
[313279878,1707073298166,-4228.62,0.00048219,31]
[313279879,1707073298188,-553.67,0.00048219,31]
[313279880,1707073298212,-500.0,0.00048219,31]
[313279881,1707073298236,-500.0,0.00048219,31]
[313279882,1707073298260,-500.0,0.00048219,31]
[313279883,1707073298284,-500.0,0.00048219,31]
[313279884,1707073298308,-500.0,0.00048219,31]
[313279885,1707073298333,-263.18747884,0.00048219,31]
[313279886,1707073298360,-500.0,0.00048219,31]
[313279887,1707073298384,-500.0,0.00048219,31]
[313279888,1707073298409,-500.0,0.00048219,31]
[313279889,1707073298433,-500.0,0.00048219,31]
[313279890,1707073298459,-500.0,0.00048219,31]
[313279891,1707073298483,-371.55993211,0.00048219,31]
[313279892,1707073298508,-500.0,0.00048219,31]
[313279893,1707073298535,-500.0,0.00048219,31]
[313279894,1707073298560,-500.0,0.00048219,30]
[313279895,1707073298584,-500.0,0.00048219,31]
[313279896,1707073298609,-1762.99,0.00048219,31]
[313279897,1707073298633,-820.32,0.00048219,31]
[313279898,1707073298658,-449.56067148,0.00048219,31]
[313279899,1707073298683,-500.0,0.00048219,31]
[313279900,1707073298709,-2876.0,0.00048219,31]
[313279901,1707073298733,-305.90243469,0.00048219,31]
[313279902,1707073298758,-500.0,0.00048219,31]
[313279903,1707073298783,-500.0,0.00048219,31]
[313279904,1707073298808,-500.0,0.00048219,31]
[313279905,1707073298832,-289.97387065,0.00048219,31]
[313279906,1707073298857,-633.54,0.00048219,31]
[313279907,1707073298883,-221.74748513,0.00048219,31]
[313279908,1707073298907,-577.20053514,0.00048219,31]
[313279909,1707073298931,-500.0,0.00048219,31]
[313279910,1707073298956,-500.0,0.00048219,31]
[313279911,1707073298981,-500.0,0.00048219,31]
[313279912,1707073299006,-500.0,0.00048219,31]
[313279913,1707073299030,-500.0,0.00048219,31]
[313279914,1707073299054,-500.0,0.00048219,31]
[313279915,1707073299079,-500.0,0.00048219,31]
[313279916,1707073299103,-500.0,0.00048219,31]
[313279917,1707073299129,-500.0,0.00048219,31]
[313279918,1707073299154,-3654.59,0.00048219,31]
[313279919,1707073299177,-500.0,0.00048219,31]
[313279920,1707073299202,-500.0,0.00048219,31]
[313279921,1707073299227,-500.0,0.00048219,31]
[313279922,1707073299251,-803.85,0.00048219,30]
[313279923,1707073299392,-157.0,0.000484,30]
[313279924,1707073299418,-1676.94844185,0.0004875,30]
[313279925,1707073299446,-2100.0,0.00048763,30]
[313279926,1707073299470,-1044.03,0.00048767,31]
[313279927,1707073299494,-1000.0,0.00048767,30]
[313279928,1707073299517,-546.31,0.00048767,31]
[313279929,1707073299540,-1699.92,0.00048767,31]
[313279930,1707073299563,-500.0,0.00048767,31]
[313279931,1707073299586,-1005.74,0.00048767,31]
[313279932,1707073299609,-500.0,0.00048767,31]
[313279933,1707073299631,-4366.03,0.00048767,31]
[313279934,1707073299656,-196.81943821,0.00048767,31]
[313279935,1707073299682,-975.07,0.00048767,31]
[313279936,1707073299707,-500.0,0.00048767,31]
[313279937,1707073299730,-500.0,0.00048767,31]
[313279938,1707073299755,-480.81355862,0.00048767,31]
[313279939,1707073299779,-1100.05,0.00048767,31]
[313279940,1707073299802,-500.0,0.00048767,31]
[313279941,1707073299826,-515.63,0.00048767,31]
[313279942,1707073299850,-500.0,0.00048767,31]
[313279943,1707073299873,-219.8,0.00048767,31]
[313279944,1707073299898,-500.0,0.00048767,31]
[313279945,1707073299921,-500.0,0.00048767,31]
[313279946,1707073299946,-500.0,0.00048767,31]
[313279947,1707073299972,-726.67,0.00048767,31]
[313279948,1707073299995,-500.0,0.00048767,31]
[313279949,1707073300019,-500.0,0.00048767,31]
[313279950,1707073300044,-500.0,0.00048767,31]
[313279951,1707073300068,-714.0,0.00048767,31]
[313279952,1707073300094,-500.0,0.00048767,31]
[313279953,1707073300118,-500.0,0.00048767,31]
[313279954,1707073300147,-500.0,0.00048767,31]
[313279955,1707073300175,-5901.62,0.00048767,31]
[313279956,1707073300201,-500.0,0.00048767,31]
[313279957,1707073300228,-1087.84,0.00048767,31]
[313279958,1707073300257,-385.83790882,0.00048767,31]
[313279959,1707073300282,-883.87,0.00048767,31]
[313279960,1707073300313,-262.25372264,0.00048767,31]
[313279961,1707073300341,-539.97,0.00048767,31]
[313279962,1707073300370,-500.0,0.00048767,31]
[313279963,1707073300396,-247.71852738,0.00048767,31]
[313279964,1707073300426,-500.0,0.00048767,31]
[313279965,1707073300453,-500.0,0.00048767,31]
[313279966,1707073300479,-4228.62,0.00048767,31]
[313279967,1707073300503,-553.67,0.00048767,31]
[313279968,1707073300534,-500.0,0.00048767,31]
[313279969,1707073300558,-500.0,0.00048767,31]
[313279970,1707073300582,-500.0,0.00048767,31]
[313279971,1707073300608,-500.0,0.00048767,31]
[313279972,1707073300632,-500.0,0.00048767,31]
[313279973,1707073300656,-500.0,0.00048767,31]
[313279974,1707073300681,-500.0,0.00048767,31]
[313279975,1707073300707,-500.0,0.00048767,31]
[313279976,1707073300732,-500.0,0.00048767,31]
[313279977,1707073300755,-500.0,0.00048767,31]
[313279978,1707073300783,-500.0,0.00048767,31]
[313279979,1707073300807,-500.0,0.00048767,31]
[313279980,1707073300831,-500.0,0.00048767,30]
[313279981,1707073300856,-500.0,0.00048767,31]
[313279982,1707073300881,-1762.99,0.00048767,31]
[313279983,1707073300907,-820.32,0.00048767,31]
[313279984,1707073300932,-500.0,0.00048767,31]
[313279985,1707073300958,-2876.0,0.00048767,31]
[313279986,1707073300982,-500.0,0.00048767,31]
[313279987,1707073301006,-574.92634837,0.00048767,31]
[313279988,1707073301033,-447.06807752,0.00048767,31]
[313279989,1707073301057,-633.54,0.00048767,31]
[313279990,1707073301082,-500.0,0.00048767,31]
[313279991,1707073301107,-500.0,0.00048767,31]
[313279992,1707073301135,-500.09459273,0.00048767,31]
[313279993,1707073301158,-500.0,0.00048767,31]
[313279994,1707073301183,-500.0,0.00048767,31]
[313279995,1707073301208,-500.0,0.00048767,31]
[313279996,1707073301231,-487.93130269,0.00048767,31]
[313279997,1707073301255,-365.07912286,0.00048767,31]
[313279998,1707073301280,-500.0,0.00048767,31]
[313279999,1707073301305,-3654.59,0.00048767,31]
[313280000,1707073301328,-500.0,0.00048767,31]
[313280001,1707073301353,-500.0,0.00048767,31]
[313280002,1707073301378,-500.0,0.00048767,31]
[313280003,1707073301401,-803.85,0.00048767,30]
[313280004,1707073301428,-6735.97686478,0.00049,30]
[313280005,1707073301452,-1250.08384584,0.00049,30]
[313280006,1707073301477,-628.89565363,0.00049,30]
[313280007,1707073301501,-151.90736056,0.00049,30]
[313280008,1707073301524,-1000.0,0.00049,30]
[313280009,1707073301550,-1000.0,0.00049,30]
[313280010,1707073301574,-320000.0,0.00049,30]
[313280011,1707073301599,-1405.42647603,0.00049,30]
[313280012,1707073301633,-10310.3214384,0.000492,30]
[313280013,1707073301659,-157.0,0.000492,30]
[313280014,1707073301685,-3000.0,0.0004925,30]
[313280015,1707073301710,-3000.0,0.00049255,30]
[313280016,1707073301736,-669.65419002,0.00049295,30]
[313280017,1707073301761,-450.0,0.00049295,30]
[313280018,1707073301785,-402.6,0.000493,30]
[313280019,1707073301809,-211.0,0.0004931,30]
[313280020,1707073301832,-217.0,0.0004931,30]
[313280021,1707073301857,-253.0,0.0004931,30]
[313280022,1707073301882,-218.0,0.0004931,30]
[313280023,1707073301907,-211.0,0.0004931,30]
[313280024,1707073301932,-150.0,0.00049315,30]
[313280025,1707073302073,-150.0,0.00049315,30]
[313280026,1707073302105,-1044.03,0.00049315,31]
[313280027,1707073302130,-509.48197488,0.00049315,31]
[313280028,1707073302154,-1000.0,0.00049315,30]
[313280029,1707073302179,-546.31,0.00049315,31]
[313280030,1707073302203,-1699.92,0.00049315,31]
[313280031,1707073302230,-500.0,0.00049315,31]
[313280032,1707073302255,-1000.0,0.00049315,30]
[313280033,1707073302278,-1007.29196027,0.00049315,30]
[313280034,1707073302301,-1005.74,0.00049315,31]
[313280035,1707073302326,-500.0,0.00049315,31]
[313280036,1707073302352,-4366.03,0.00049315,31]
[313280037,1707073302379,-975.07,0.00049315,31]
[313280038,1707073302402,-500.0,0.00049315,31]
[313280039,1707073302426,-500.0,0.00049315,31]
[313280040,1707073302452,-1100.05,0.00049315,31]
[313280041,1707073302479,-500.0,0.00049315,31]
[313280042,1707073302504,-515.63,0.00049315,31]
[313280043,1707073302527,-278.31367965,0.00049315,31]
[313280044,1707073302551,-500.0,0.00049315,31]
[313280045,1707073302576,-500.0,0.00049315,31]
[313280046,1707073302602,-500.0,0.00049315,31]
[313280047,1707073302627,-726.67,0.00049315,31]
[313280048,1707073302652,-500.0,0.00049315,31]
[313280049,1707073302675,-500.0,0.00049315,31]
[313280050,1707073302701,-500.0,0.00049315,31]
[313280051,1707073302727,-714.0,0.00049315,31]
[313280052,1707073302751,-500.0,0.00049315,31]
[313280053,1707073302776,-500.0,0.00049315,31]
[313280054,1707073302800,-500.0,0.00049315,31]
[313280055,1707073302824,-5901.62,0.00049315,31]
[313280056,1707073302847,-500.0,0.00049315,31]
[313280057,1707073302871,-1087.84,0.00049315,31]
[313280058,1707073302895,-883.87,0.00049315,31]
[313280059,1707073302919,-539.97,0.00049315,31]
[313280060,1707073302944,-500.0,0.00049315,31]
[313280061,1707073302969,-485.46913178,0.00049315,31]
[313280062,1707073302992,-500.0,0.00049315,31]
[313280063,1707073303017,-4228.62,0.00049315,31]
[313280064,1707073303041,-553.67,0.00049315,31]
[313280065,1707073303067,-500.0,0.00049315,31]
[313280066,1707073303091,-500.0,0.00049315,31]
[313280067,1707073303116,-500.0,0.00049315,31]
[313280068,1707073303141,-314.39719244,0.00049315,31]
[313280069,1707073303167,-500.0,0.00049315,31]
[313280070,1707073303193,-500.0,0.00049315,31]
[313280071,1707073303222,-500.0,0.00049315,31]
[313280072,1707073303248,-500.0,0.00049315,31]
[313280073,1707073303274,-500.0,0.00049315,31]
[313280074,1707073303300,-500.0,0.00049315,31]
[313280075,1707073303327,-500.0,0.00049315,31]
[313280076,1707073303358,-500.0,0.00049315,31]
[313280077,1707073303385,-500.0,0.00049315,30]
[313280078,1707073303412,-500.0,0.00049315,31]
[313280079,1707073303439,-1762.99,0.00049315,31]
[313280080,1707073303469,-820.32,0.00049315,31]
[313280081,1707073303493,-608.21632566,0.00049315,31]
[313280082,1707073303522,-2876.0,0.00049315,31]
[313280083,1707073303546,-500.0,0.00049315,31]
[313280084,1707073303570,-633.54,0.00049315,31]
[313280085,1707073303594,-500.0,0.00049315,31]
[313280086,1707073303617,-168.57988023,0.00049315,31]
[313280087,1707073303642,-309.71764564,0.00049315,31]
[313280088,1707073303671,-500.0,0.00049315,31]
[313280089,1707073303696,-500.0,0.00049315,31]
[313280090,1707073303725,-500.0,0.00049315,31]
[313280091,1707073303751,-3654.59,0.00049315,31]
[313280092,1707073303776,-386.46368242,0.00049315,31]
[313280093,1707073303800,-500.0,0.00049315,31]
[313280094,1707073303825,-500.0,0.00049315,31]
[313280095,1707073303849,-803.85,0.00049315,30]
[313280096,1707073303873,-3000.0,0.0004932,30]
[313280097,1707073303898,-152.38471358,0.000495,30]
[313280098,1707073303923,-2384.87179865,0.0004957,30]
[313280099,1707073303946,-518.05998137,0.000497,30]
[313280100,1707073303972,-1044.03,0.00049863,31]
[313280101,1707073303995,-1000.0,0.00049863,30]
[313280102,1707073304019,-546.31,0.00049863,31]
[313280103,1707073304043,-1699.92,0.00049863,31]
[313280104,1707073304067,-500.0,0.00049863,31]
[313280105,1707073304091,-1005.74,0.00049863,31]
[313280106,1707073304115,-500.0,0.00049863,31]
[313280107,1707073304138,-4366.03,0.00049863,31]
[313280108,1707073304163,-975.07,0.00049863,31]
[313280109,1707073304187,-500.0,0.00049863,31]
[313280110,1707073304213,-500.0,0.00049863,31]
[313280111,1707073304236,-1100.05,0.00049863,31]
[313280112,1707073304260,-500.0,0.00049863,31]
[313280113,1707073304285,-515.63,0.00049863,31]
[313280114,1707073304309,-500.0,0.00049863,31]
[313280115,1707073304334,-500.0,0.00049863,31]
[313280116,1707073304360,-640.5889877,0.00049863,31]
[313280117,1707073304386,-726.67,0.00049863,31]
[313280118,1707073304414,-500.0,0.00049863,31]
[313280119,1707073304438,-500.0,0.00049863,31]
[313280120,1707073304464,-500.0,0.00049863,31]
[313280121,1707073304489,-714.0,0.00049863,31]
[313280122,1707073304513,-500.0,0.00049863,31]
[313280123,1707073304538,-500.0,0.00049863,31]
[313280124,1707073304562,-500.0,0.00049863,31]
[313280125,1707073304586,-5901.62,0.00049863,31]
[313280126,1707073304611,-193.42357882,0.00049863,31]
[313280127,1707073304637,-1087.84,0.00049863,31]
[313280128,1707073304662,-883.87,0.00049863,31]
[313280129,1707073304810,-539.97,0.00049863,31]
[313280130,1707073304842,-524.67517288,0.00049863,31]
[313280131,1707073304868,-500.0,0.00049863,31]
[313280132,1707073304895,-4228.62,0.00049863,31]
[313280133,1707073304920,-553.67,0.00049863,31]
[313280134,1707073304949,-500.0,0.00049863,31]
[313280135,1707073304976,-500.0,0.00049863,31]
[313280136,1707073305003,-500.0,0.00049863,31]
[313280137,1707073305028,-500.0,0.00049863,31]
[313280138,1707073305055,-610.14420245,0.00049863,31]
[313280139,1707073305081,-500.0,0.00049863,31]
[313280140,1707073305109,-500.0,0.00049863,31]
[313280141,1707073305134,-500.0,0.00049863,31]
[313280142,1707073305160,-500.0,0.00049863,31]
[313280143,1707073305190,-500.0,0.00049863,31]
[313280144,1707073305216,-500.0,0.00049863,31]
[313280145,1707073305240,-606.27077658,0.00049863,30]
[313280146,1707073305264,-500.0,0.00049863,31]
[313280147,1707073305290,-1762.99,0.00049863,31]
[313280148,1707073305315,-820.32,0.00049863,31]
[313280149,1707073305342,-2876.0,0.00049863,31]
[313280150,1707073305372,-500.0,0.00049863,31]
[313280151,1707073305397,-633.54,0.00049863,31]
[313280152,1707073305421,-500.0,0.00049863,31]
[313280153,1707073305447,-500.0,0.00049863,31]
[313280154,1707073305473,-500.0,0.00049863,31]
[313280155,1707073305499,-500.0,0.00049863,31]
[313280156,1707073305525,-3654.59,0.00049863,31]
[313280157,1707073305551,-500.0,0.00049863,31]
[313280158,1707073305578,-500.0,0.00049863,31]
[313280159,1707073305603,-803.85,0.00049863,30]
[313280160,1707073305628,-1400.00000001,0.0004987,30]
[313280161,1707073305652,-50099.06,0.000499,30]
[313280162,1707073305676,-25229.2098548,0.000499,30]
[313280163,1707073305702,-156671.11528579,0.0004999,30]
[313280164,1707073305728,-178.5698898,0.0005,30]
[313280165,1707073305753,-10881.33223946,0.0005,30]
[313280166,1707073305777,-193.53964638,0.0005,30]
[313280167,1707073305800,-292.39445418,0.0005,30]